bitfinex-derivatives/quotes_ETHF0:USTF0_20260112
["timestamp","ask_amount","ask_price","bid_price","bid_amount"]
[1768226651908,1.37177398,3110.6,3109.7,1.24273013]
[1768226652104,0.89794957,3110.5,3109.7,1.24273013]
[1768226652312,1.37177398,3110.6,3109.7,1.24273013]
[1768226652610,1.37177398,3110.6,3108.7,4.75008151]
[1768226652611,0.89805936,3110.5,3110.1,1.24273013]
[1768226652906,1.37622109,3110.6,3109.4,0.16101]
[1768226653113,1.37622109,3110.0,3108.9,3.219]
[1768226653710,0.89767158,3109.9,3108.9,3.219]
[1768226653911,1.37622109,3110.0,3108.9,3.219]
[1768226654216,0.89766431,3109.9,3108.9,3.219]
[1768226654406,1.37622109,3110.0,3108.9,3.219]
[1768226654606,0.89747776,3109.9,3108.9,3.219]
[1768226654810,1.37622109,3110.0,3108.9,3.219]
[1768226655012,0.8974787,3109.9,3108.9,3.219]
[1768226655215,1.37622109,3110.0,3108.9,3.219]
[1768226655414,0.89734403,3109.9,3108.9,3.219]
[1768226655713,1.37622109,3110.0,3108.9,3.219]
[1768226655910,0.8973455,3109.9,3108.9,3.219]
[1768226656115,2.61895122,3109.9,3108.9,3.219]
[1768226656918,1.37622109,3109.9,3108.9,3.219]
[1768226659619,1.37622109,3110.3,3109.0,1.24273013]
[1768226659820,0.89691682,3110.2,3109.0,1.24273013]
[1768226660019,0.89691682,3110.1,3109.0,1.24273013]
[1768226660219,0.89691682,3110.0,3109.0,1.24273013]
[1768226660522,1.37622109,3110.3,3109.0,1.24273013]
[1768226660707,0.89684493,3110.2,3109.0,1.24273013]
[1768226660912,0.89684493,3110.1,3109.0,1.24273013]
[1768226661112,0.89684493,3110.0,3109.0,1.24273013]
[1768226661308,1.37622109,3110.3,3109.0,1.24273013]
[1768226661508,0.89680764,3110.2,3109.0,1.24273013]
[1768226661728,0.89680764,3110.1,3109.0,1.24273013]
[1768226661918,0.89680764,3110.0,3108.9,3.219]
[1768226662119,1.37622109,3110.3,3108.9,3.219]
[1768226662324,0.89682858,3110.2,3109.0,1.24273013]
[1768226662520,0.89682858,3110.1,3109.0,1.24273013]
[1768226662817,0.89682858,3110.1,3108.7,1.24273013]
[1768226662818,1.37622109,3109.9,3108.7,1.24273013]
[1768226663018,2.61895122,3109.8,3108.7,1.852]
[1768226663622,1.37622109,3109.8,3108.7,1.852]
[1768226666121,1.37622109,3109.8,3108.7,1.851]
[1768226667421,1.37622109,3109.8,3108.6,1.24547929]
[1768226667620,1.37622109,3109.8,3108.7,1.851]
[1768226668321,1.37622109,3109.8,3108.6,1.24547929]
[1768226668523,3.51579188,3109.7,3108.7,1.851]
[1768226668729,2.61895122,3109.7,3108.7,1.851]
[1768226670132,1.24273013,3110.4,3108.6,0.00274916]
[1768226670133,1.24273013,3109.2,3108.6,0.00274916]
[1768226670316,1.24273013,3108.8,3107.6,1.38953449]
[1768226670628,1.24273013,3108.8,3107.7,1.85]
[1768226670826,1.37622109,3108.9,3107.7,3.09273013]
[1768226671321,1.37622109,3108.9,3107.8,1.24273013]
[1768226671322,1.37995173,3108.9,3107.8,1.24273013]
[1768226672021,1.37995173,3108.9,3107.8,1.85]
[1768226673628,1.37995173,3108.9,3107.8,3.09273013]
[1768226675222,1.37995173,3108.9,3107.8,1.85]
[1768226675420,2.62268186,3108.9,3107.7,0.00261088]
[1768226675621,1.39678853,3108.8,3107.7,0.00261088]
[1768226678231,1.24273013,3108.7,3107.7,0.00261088]
[1768226678430,1.39678853,3108.8,3107.7,0.00261088]
[1768226678732,1.39678853,3108.7,3107.7,0.00261088]
[1768226682341,1.39678853,3108.3,3107.7,0.00261088]
[1768226686440,1.39678853,3108.7,3107.7,0.00261088]
[1768226686637,0.00373064,3108.9,3108.0,1.24273013]
[1768226686847,0.00373064,3108.9,3107.7,0.00261088]
[1768226686848,0.00373064,3108.9,3108.3,1.24273013]
[1768226687146,0.00373064,3108.9,3108.1,1.24273013]
[1768226687534,2.63951866,3108.8,3107.7,0.00261088]
[1768226687738,1.39678853,3108.7,3107.7,0.00261088]
[1768226688433,1.39678853,3108.5,3107.7,0.00261088]
[1768226699967,2.29332137,3108.4,3107.7,0.00261088]
[1768226700164,1.39678853,3108.4,3107.7,0.00261088]
[1768226703861,1.39865753,3108.8,3107.7,0.00261088]
[1768226704160,2.29614438,3108.7,3107.7,0.00261088]
[1768226704361,0.89748685,3108.6,3107.7,0.00261088]
[1768226705171,0.00373064,3108.9,3108.1,1.24451332]
[1768226705863,0.00373064,3108.9,3107.8,0.16109]
[1768226706071,0.00373064,3108.9,3107.9,1.84]
[1768226707067,0.00373064,3108.9,3107.8,0.16109]
[1768226707363,0.00373064,3108.9,3107.9,1.84]
[1768226709569,1.43250135,3110.0,3108.8,1.24451332]
[1768226710064,1.43250135,3110.0,3108.4,0.16106]
[1768226710656,1.43525801,3110.0,3108.4,0.16106]
[1768226710859,1.43525801,3110.0,3108.4,1.40557332]
[1768226711771,1.43525801,3110.0,3108.5,1.839]
[1768226715266,1.43525801,3110.0,3108.4,1.40557332]
[1768226715566,1.43525801,3110.0,3108.6,1.839]
[1768226716270,1.43525801,3110.0,3108.4,0.16106]
[1768226716575,1.43525801,3110.0,3108.5,1.838]
[1768226716769,1.43525801,3110.0,3108.6,1.838]
[1768226717474,1.43525801,3110.0,3108.4,1.99906]
[1768226718171,1.43525801,3110.0,3108.4,1.838]
[1768226718480,1.39546239,3109.8,3108.4,1.838]
[1768226720180,1.39546239,3109.8,3108.4,1.99906]
[1768226721968,1.39546239,3109.8,3108.5,0.16105]
[1768226722172,0.00275666,3110.0,3108.6,1.24451332]
[1768226723180,1.39821905,3110.0,3108.6,1.24451332]
[1768226723383,1.39821905,3110.0,3108.8,0.16104]
[1768226724184,0.00275666,3110.0,3108.8,0.16104]
[1768226727978,0.00275666,3110.0,3108.9,0.16103]
[1768226730387,1.39546239,3110.8,3109.4,1.24451332]
[1768226730584,1.39546239,3111.6,3109.6,0.16099]
[1768226730892,1.39546239,3111.4,3109.7,0.16099]
[1768226731189,0.16089,3111.8,3109.8,1.24451332]
[1768226731190,1.39546239,3111.3,3109.8,1.24451332]
[1768226731488,1.39799908,3111.3,3109.8,1.24451332]
[1768226731985,1.39799908,3111.3,3109.9,0.16098]
[1768226732283,1.39799908,3111.3,3109.9,0.16439588]
[1768226733888,0.00253669,3111.3,3110.3,0.16096]
[1768226734279,0.00253669,3111.3,3110.4,1.832]
[1768226735285,0.00253669,3111.3,3110.3,0.16096]
[1768226735582,0.00253669,3111.3,3110.4,1.832]
[1768226736696,0.00253669,3111.3,3110.3,1.99196]
[1768226736996,1.42648065,3111.3,3109.9,0.00341588]
[1768226737184,1.42648065,3111.3,3110.0,1.831]
[1768226737988,1.42648065,3111.3,3109.9,1.83441588]
[1768226738495,1.42648065,3111.3,3109.9,0.00341588]
[1768226738690,1.42394396,3111.2,3109.9,0.00341588]
[1768226739094,1.42394396,3111.0,3109.9,0.00341588]
[1768226743389,1.42394396,3110.8,3109.9,0.00341588]
[1768226743589,1.42394396,3110.8,3109.4,1.829]
[1768226744597,1.58488396,3110.8,3109.4,0.00332333]
[1768226744795,1.42394396,3110.6,3109.4,0.00332333]
[1768226745592,0.16094,3110.8,3109.4,0.00332333]
[1768226745593,1.42394396,3110.4,3109.4,0.00332333]
[1768226748804,0.88393902,3110.3,3108.7,0.16104]
[1768226749006,1.42394396,3110.1,3108.7,0.16104]
[1768226749388,1.42394396,3110.1,3108.1,0.16107]
[1768226749592,1.42394396,3110.0,3108.1,1.98807]
[1768226749802,1.42394396,3110.0,3108.1,1.99100348]
[1768226751298,1.42394396,3110.0,3108.3,0.16106]
[1768226751604,1.42394396,3110.4,3108.7,1.24451332]
[1768226751796,2.30784149,3110.3,3108.7,1.24451332]
[1768226752001,1.42394396,3110.3,3108.7,1.40555332]
[1768226752402,1.42394396,3110.3,3108.8,0.16104]
[1768226755800,1.42394396,3110.3,3108.7,1.24451332]
[1768226756012,1.42394396,3110.3,3108.9,0.16103]
[1768226761413,1.42394396,3110.3,3108.9,1.98503]
[1768226761914,1.42394396,3110.3,3108.9,1.98403]
[1768226762113,1.42394396,3110.3,3108.9,0.16103]
[1768226763405,1.42394396,3110.0,3108.9,0.16103]
[1768226765207,2.30442761,3111.1,3108.3,1.42714561]
[1768226765208,1.40243994,3109.6,3108.3,1.24330869]
[1768226765407,2.64574863,3109.3,3108.2,0.16107]
[1768226765716,1.40243994,3109.3,3108.4,1.24330869]
[1768226766912,1.40243994,3109.3,3108.6,1.24330869]
[1768226768208,1.40243994,3109.3,3108.4,1.24330869]
[1768226769313,1.40243994,3109.3,3108.2,1.98307]
[1768226774019,1.40243994,3109.3,3108.1,0.00293348]
[1768226774210,1.43973927,3109.1,3108.1,0.00293348]
[1768226774409,1.44253788,3109.1,3108.1,0.00293348]
[1768226775816,1.44253788,3109.1,3106.9,26.94892911]
[1768226775817,1.43973927,3108.9,3107.5,1.821]
[1768226776609,1.43973927,3108.9,3107.5,1.82475051]
[1768226782223,1.43973927,3108.9,3107.5,0.00375051]
[1768226785321,1.43973927,3108.9,3107.6,0.1611]
[1768226785830,0.00279861,3109.1,3107.6,0.1611]
[1768226786832,0.00279861,3109.1,3107.5,1.36287375]
[1768226786833,0.00279861,3109.1,3107.7,0.16109]
[1768226787633,1.44253788,3109.1,3107.8,1.818]
[1768226788529,1.44253788,3109.1,3107.9,1.819]
[1768226791332,1.44253788,3109.1,3107.9,3.06293865]
[1768226792126,1.44253788,3109.1,3108.1,1.24393865]
[1768226792331,1.44253788,3109.1,3108.0,1.24393865]
[1768226793432,0.88346673,3109.0,3108.0,1.24393865]
[1768226793729,1.44253788,3109.1,3108.0,1.24393865]
[1768226793928,1.43973927,3108.9,3108.0,1.24393865]
[1768226794134,0.00279861,3109.1,3108.2,1.24393865]
[1768226794425,0.88345787,3109.0,3108.1,1.24393865]
[1768226794619,0.00279861,3109.1,3108.1,1.24393865]
[1768226794824,0.88385344,3109.0,3108.1,1.24393865]
[1768226795026,0.00279861,3109.1,3108.1,1.24393865]
[1768226795227,0.88385281,3109.0,3108.1,1.24393865]
[1768226795529,0.00279861,3109.1,3108.1,1.24393865]
[1768226795728,0.88408457,3109.0,3108.1,1.24393865]
[1768226795932,0.00279861,3109.1,3108.1,1.24393865]
[1768226796129,0.88408252,3109.0,3108.1,1.24393865]
[1768226796323,0.00279861,3109.1,3108.1,1.24393865]
[1768226796523,0.88424572,3109.0,3108.1,1.24393865]
[1768226796724,0.00279861,3109.1,3108.1,1.24393865]
[1768226796930,0.88424923,3109.0,3107.8,1.819]
[1768226797129,1.48914923,3109.1,3107.9,1.24393865]
[1768226797334,0.88429044,3109.0,3107.9,1.24393865]
[1768226797634,0.88443617,3108.9,3107.9,1.24393865]
[1768226797831,1.48914923,3109.1,3107.9,1.24393865]
[1768226798132,0.88443728,3109.0,3107.9,1.24393865]
[1768226798334,0.88459783,3108.9,3107.9,1.24393865]
[1768226798523,1.48914923,3109.1,3107.9,1.24393865]
[1768226798725,0.88463326,3109.0,3107.9,1.24393865]
[1768226798926,0.88463326,3108.9,3107.9,1.24393865]
[1768226799134,1.48914923,3109.1,3107.9,1.24393865]
[1768226799326,0.88462593,3109.0,3107.9,1.24393865]
[1768226799525,0.88462593,3108.9,3107.9,1.24393865]
[1768226799731,1.48914923,3109.1,3107.9,1.24393865]
[1768226800036,0.8847914,3109.0,3108.1,1.24393865]
[1768226800228,0.8847914,3108.9,3108.1,1.24393865]
[1768226800430,1.48914923,3109.1,3108.1,1.24393865]
[1768226800626,0.88498897,3109.0,3108.1,1.24393865]
[1768226800825,0.88498897,3108.9,3108.1,1.24393865]
[1768226801027,1.48914923,3109.1,3108.1,1.24393865]
[1768226801229,0.88498907,3109.0,3108.1,1.24393865]
[1768226801532,1.48635062,3109.9,3108.9,1.24393865]
[1768226801737,2.68583155,3109.8,3108.7,1.24393865]
[1768226801940,0.88532507,3109.7,3108.7,1.24393865]
[1768226802232,0.88532507,3109.7,3109.1,1.24393865]
[1768226802429,1.48635062,3110.2,3109.1,1.24393865]
[1768226802629,0.88533357,3110.1,3109.1,1.24393865]
[1768226802828,0.88533357,3110.0,3109.1,1.24393865]
[1768226803029,1.48904388,3110.2,3108.9,1.24393865]
[1768226803229,2.37166605,3110.1,3108.9,1.24393865]
[1768226803529,1.48635062,3110.0,3108.8,1.816]
[1768226804234,0.00269326,3110.2,3109.1,1.24393865]
[1768226804939,0.00269326,3110.2,3108.8,1.97704]
[1768226805139,0.00269326,3110.2,3109.0,1.24393865]
[1768226806539,0.00269326,3110.2,3109.4,1.24393865]
[1768226807041,1.48635062,3111.3,3110.0,1.24393865]
[1768226807234,1.48635062,3111.3,3110.2,1.24393865]
[1768226807433,1.48635062,3111.3,3110.0,1.24393865]
[1768226807942,1.48635062,3111.3,3110.2,1.24393865]
[1768226808238,1.4888475,3111.3,3110.2,0.00259026]
[1768226808435,1.4888475,3111.3,3110.2,1.24652891]
[1768226809437,1.4888475,3111.3,3110.2,0.00259026]
[1768226816142,1.48635062,3111.1,3109.2,4.39]
[1768226817140,1.48635062,3111.1,3109.2,4.393376]
[1768226818139,1.48635062,3111.1,3109.2,4.554396]
[1768226818440,1.48635062,3111.1,3109.4,0.16101]
[1768226818742,1.48635062,3111.1,3109.5,0.161]
[1768226819442,1.48635062,3111.1,3109.6,1.5952214]
[1768226819653,0.00249688,3111.3,3109.6,1.5952214]
[1768226819950,0.00249688,3111.3,3109.8,0.16098]
[1768226820446,0.00249688,3111.3,3109.9,1.4342214]
[1768226820840,0.00249688,3111.3,3110.1,0.16097]
[1768226829148,0.00249688,3111.3,3110.4,0.16095]
[1768226829349,0.00249688,3111.3,3110.5,0.16095]
[1768226829548,1.37860009,3112.0,3110.5,0.16095]
[1768226830254,0.88386248,3111.9,3110.5,0.16095]
[1768226830465,0.00294308,3111.9,3110.5,0.16095]
[1768226831761,1.37150846,3111.8,3110.0,0.16098]
[1768226832062,1.37150846,3111.3,3110.0,0.16098]
[1768226834351,0.88628851,3111.2,3110.0,0.16098]
[1768226834553,1.37150846,3111.3,3110.0,0.16098]
[1768226834753,0.88626788,3111.2,3109.8,1.805]
[1768226834961,1.37150846,3111.1,3109.8,1.805]
[1768226835162,1.37150846,3111.1,3109.5,0.161]
[1768226835362,1.37150846,3111.1,3109.6,5.184]
[1768226836065,1.37150846,3111.1,3109.7,5.022]
[1768226838256,1.37150846,3110.9,3109.3,3.218]
[1768226838457,1.37150846,3110.7,3109.4,1.804]
[1768226840567,1.37150846,3110.7,3109.2,0.003376]
[1768226840866,1.37150846,3110.7,3109.3,1.804]
[1768226841165,1.37150846,3110.7,3109.2,0.003376]
[1768226841365,1.37150846,3110.7,3109.3,1.804]
[1768226842557,1.37150846,3110.5,3109.2,0.003376]
[1768226842760,1.37150846,3110.3,3109.2,0.003376]
[1768226842966,1.37150846,3110.1,3109.2,0.003376]
[1768226847367,1.37150846,3111.0,3109.2,0.164396]
[1768226847571,0.88458897,3110.9,3109.2,1.4425827]
[1768226847770,1.37150846,3111.0,3109.2,1.4425827]
[1768226847972,0.88472722,3110.9,3109.2,1.4425827]
[1768226848167,1.37150846,3111.0,3109.4,1.6002067]
[1768226848471,1.37150846,3111.4,3109.5,1.6002067]
[1768226848672,0.88472899,3111.3,3109.5,1.6002067]
[1768226848868,0.88472899,3111.2,3109.5,1.6002067]
[1768226849069,0.88472899,3111.1,3109.5,1.6002067]
[1768226849263,0.88472899,3111.0,3109.5,1.6002067]
[1768226849463,1.37150846,3111.3,3109.5,1.6002067]
[1768226849770,0.88463769,3111.2,3109.5,1.6002067]
[1768226850066,0.88463769,3111.1,3109.6,0.161]
[1768226850272,1.37150846,3111.3,3109.6,1.6002067]
[1768226850569,0.8846687,3111.2,3109.6,1.6002067]
[1768226850771,0.8846687,3111.1,3109.6,1.6002067]
[1768226850971,1.37150846,3111.3,3109.6,1.6002067]
[1768226851172,0.88469212,3111.2,3109.6,1.6002067]
[1768226851473,0.88469212,3111.1,3109.6,1.6002067]
[1768226851674,1.37150846,3111.3,3109.6,1.6002067]
[1768226851870,0.88469432,3111.2,3109.6,1.6002067]
[1768226852071,0.88469432,3111.1,3109.6,1.6002067]
[1768226852371,1.37150846,3111.3,3109.6,1.6002067]
[1768226852573,0.88472649,3111.2,3109.6,1.6002067]
[1768226852771,0.88472649,3111.1,3109.6,1.6002067]
[1768226853085,1.37150846,3111.3,3109.6,1.6002067]
[1768226853268,1.37150846,3111.1,3109.6,1.6002067]
[1768226853573,0.88475926,3111.0,3109.6,1.6002067]
[1768226857276,1.37150846,3111.1,3109.6,1.6002067]
[1768226857671,1.37150846,3111.1,3109.2,0.003376]
[1768226857972,1.48921323,3110.9,3109.3,1.799]
[1768226858772,1.48921323,3110.7,3109.2,0.003376]
[1768226859073,1.48921323,3110.5,3109.2,0.003376]
[1768226863082,2.37466229,3110.4,3109.2,0.003376]
[1768226863377,1.48921323,3110.4,3109.2,0.003376]
[1768226864776,1.48921323,3110.2,3109.2,0.003376]
[1768226865673,1.48921323,3110.0,3109.2,0.003376]
[1768226867469,1.48921323,3109.8,3108.4,1.796]
[1768226868475,1.48921323,3109.8,3108.4,1.79988528]
[1768226871183,1.48921323,3109.8,3108.4,0.00388528]
[1768226871383,1.48921323,3109.8,3108.4,1.79888528]
[1768226877487,1.48921323,3109.8,3108.4,1.79688528]
[1768226877883,1.48921323,3109.0,3107.3,4.04699618]
[1768226878082,1.24334394,3109.1,3107.3,4.04699618]
[1768226878083,1.48921323,3108.8,3107.3,4.04699618]
[1768226878287,1.48921323,3108.6,3107.3,5.012]
[1768226878882,1.49192631,3108.6,3107.3,5.01581562]
[1768226879680,1.49192631,3108.6,3107.3,0.00381562]
[1768226882194,1.65297631,3108.6,3107.3,0.00381562]
[1768226882379,1.48921323,3108.4,3107.3,0.00381562]
[1768226882586,0.16107,3108.2,3105.9,1.43664448]
[1768226882785,1.48921323,3108.1,3106.1,1.792]
[1768226883387,1.65029323,3108.1,3106.1,1.792]
[1768226883596,1.65029323,3108.1,3106.2,1.1541812]
[1768226885900,1.48921323,3108.1,3106.3,1.42137282]
[1768226886601,1.48921323,3108.1,3106.4,5.011]
[1768226889002,1.48921323,3108.1,3106.5,0.16115]
[1768226889397,1.48921323,3108.1,3106.6,0.16115]
[1768226896020,1.48921323,3108.1,3106.4,5.011]
[1768226896021,1.48921323,3108.1,3106.7,0.16115]
[1768226899117,1.39198915,3108.5,3107.0,0.16113]
[1768226899417,1.24427464,3108.4,3107.1,1.24427464]
[1768226899622,1.24427464,3108.4,3107.2,1.789]
[1768226899623,1.39198915,3108.3,3107.2,1.789]
[1768226900118,1.39198915,3108.3,3107.3,1.24427464]
[1768226904429,1.39198915,3108.3,3107.2,1.789]
[1768226904621,1.39198915,3108.3,3107.4,1.24427464]
[1768226905126,1.39198915,3108.3,3107.2,1.789]
[1768226905319,1.39198915,3108.3,3107.6,1.24427464]
[1768226906822,1.39198915,3108.3,3107.4,1.24427464]
[1768226908123,0.8889851,3108.2,3107.4,1.24427464]
[1768226908429,1.39198915,3108.3,3107.4,1.24427464]
[1768226908632,0.88900366,3108.2,3107.4,1.24427464]
[1768226908832,1.39198915,3108.3,3107.4,1.24427464]
[1768226909132,0.00271308,3108.6,3107.6,1.24427464]
[1768226909328,0.88909426,3108.5,3107.6,1.24427464]
[1768226909521,0.88909426,3108.4,3107.8,1.24427464]
[1768226909731,0.00271308,3108.6,3108.0,1.24427464]
[1768226910026,0.00271308,3108.6,3107.8,1.24427464]
[1768226912031,0.00271308,3108.6,3107.2,3.27483895]
[1768226912032,0.00271308,3108.6,3108.0,1.24427464]
[1768226912233,1.39198915,3109.5,3108.4,1.24427464]
[1768226912535,0.8887619,3109.4,3108.2,1.24427464]
[1768226912748,0.8887619,3109.3,3108.2,1.24427464]
[1768226912927,0.8887619,3109.2,3108.2,1.24427464]
[1768226913232,0.00269529,3109.2,3108.2,1.24697517]
[1768226921838,1.39694109,3109.2,3108.2,1.24697517]
[1768226922436,0.00269529,3109.2,3108.2,1.24697517]
[1768226922738,0.00269529,3109.2,3108.3,1.24427464]
[1768226922935,0.00269529,3109.2,3108.2,0.16377053]
[1768226923739,1.39694109,3109.2,3108.2,0.00270053]
[1768226924237,1.3942458,3109.1,3108.2,0.00270053]
[1768226925244,2.63852044,3109.0,3108.2,0.00270053]
[1768226925435,1.3942458,3108.9,3108.2,0.00270053]
[1768226925636,1.3942458,3108.7,3107.6,0.1611]
[1768226926540,1.3942458,3108.7,3107.6,0.16367867]
[1768226927240,1.3942458,3108.7,3107.6,0.00257867]
[1768226928129,1.3942458,3109.1,3107.9,1.24427464]
[1768226928326,0.88762292,3109.0,3108.3,1.24427464]
[1768226928538,1.3942458,3109.1,3108.3,1.24427464]
[1768226928741,0.88768903,3109.0,3108.1,1.24427464]
[1768226929039,1.3942458,3109.1,3108.1,1.24427464]
[1768226929227,0.88785008,3109.0,3107.9,1.24427464]
[1768226929433,1.3942458,3109.1,3107.9,1.24427464]
[1768226929632,0.88784965,3109.0,3107.9,1.24427464]
[1768226929832,1.3942458,3109.1,3107.9,1.24427464]
[1768226930030,0.88785032,3109.0,3107.9,1.24427464]
[1768226930233,1.3942458,3109.1,3107.9,1.24427464]
[1768226930537,0.00269529,3109.2,3108.3,1.24427464]
[1768226930736,0.00269529,3109.2,3107.8,1.94509]
[1768226930737,0.00269529,3109.2,3108.1,1.24427464]
[1768226937941,0.00269529,3109.2,3108.3,1.24427464]
[1768226938137,0.00269529,3109.2,3108.5,1.24427464]
[1768226939052,0.00269529,3109.2,3108.3,1.24427464]
[1768226939753,0.00269529,3109.2,3108.2,1.24427464]
[1768226940956,0.00269529,3109.2,3108.4,1.24427464]
[1768226941354,0.00269529,3109.2,3108.1,0.16107]
[1768226941654,0.00269529,3109.2,3108.3,1.24427464]
[1768226943555,0.00269529,3109.2,3108.5,1.24427464]
[1768226945053,0.00269529,3109.2,3108.1,0.16107]
[1768226945255,0.00269529,3109.2,3108.4,1.24427464]
[1768226947352,0.00269529,3109.2,3108.1,0.16107]
[1768226947956,0.00269529,3109.2,3108.1,1.43504025]
[1768226948156,1.3942458,3109.9,3108.4,1.24353093]
[1768226948350,0.89051974,3109.8,3108.4,2.83963118]
[1768226948557,0.89051974,3109.7,3108.5,1.59609025]
[1768226948755,1.39823763,3110.3,3108.5,1.59609025]
[1768226949058,1.39823763,3110.1,3108.5,0.16105]
[1768226949258,1.39823763,3109.9,3108.5,0.16105]
[1768226949454,0.89040285,3109.8,3108.5,0.16105]
[1768226949659,2.28864048,3109.7,3108.5,0.16105]
[1768226949859,0.89040285,3109.6,3108.5,0.16105]
[1768226950156,1.39823763,3109.7,3108.5,0.16105]
[1768226952955,1.45163703,3110.1,3108.5,0.16105]
[1768226953155,0.89037676,3110.0,3108.5,0.16105]
[1768226953355,0.89037676,3109.9,3108.5,0.16105]
[1768226953556,0.89037676,3109.8,3108.5,0.16105]
[1768226953756,0.89037676,3109.7,3108.5,0.16105]
[1768226953958,1.45163703,3110.1,3108.5,0.16105]
[1768226954163,2.34191241,3110.0,3108.5,0.16105]
[1768226954465,0.89027538,3109.9,3108.5,0.16105]
[1768226954964,2.34191241,3109.9,3108.5,0.16105]
[1768226955164,0.89027538,3109.8,3108.5,0.16105]
[1768226958970,1.45163703,3109.7,3108.5,0.16105]
[1768226960473,0.00263656,3110.3,3109.0,1.24353093]
[1768226960677,0.00263656,3110.3,3109.1,1.93902]
[1768226966278,1.45427359,3110.3,3109.1,1.93902]
[1768226966478,1.45427359,3110.3,3109.1,0.16102]
[1768226966678,1.45427359,3110.3,3109.0,1.778]
[1768226966890,1.45427359,3110.3,3109.1,1.778]
[1768226970393,1.45427359,3110.3,3109.1,1.93902]
[1768226971099,0.00263656,3110.3,3109.3,0.16101]
[1768226995812,0.00263656,3110.3,3109.4,0.16101]
[1768226997009,0.00263656,3110.3,3109.4,2.84914312]
[1768226997509,0.16092,3111.0,3109.4,2.84914312]
[1768226997704,0.89266671,3110.9,3109.4,2.84914312]
[1768226997903,0.89266671,3110.8,3109.4,2.84914312]
[1768226998110,0.89266671,3110.7,3109.4,2.84914312]
[1768226998312,0.89266671,3110.6,3109.4,2.84914312]
[1768226998511,0.89266671,3110.5,3109.4,2.84914312]
[1768226998913,0.00340434,3110.6,3109.5,0.161]
[1768226999119,0.00340434,3110.6,3109.5,1.60560219]
[1768226999406,3.67600102,3111.6,3110.0,0.16097]
[1768226999612,2.56233671,3111.5,3110.1,1.776]
[1768226999917,2.25778051,3111.4,3110.1,1.776]
[1768227000106,0.89597588,3111.3,3110.1,1.776]
[1768227000306,0.89597588,3111.2,3110.1,1.776]
[1768227000514,0.89597588,3111.1,3110.1,1.77944391]
[1768227000815,0.00327823,3111.2,3110.1,1.77944391]
[1768227001016,0.89538237,3111.1,3110.1,1.77944391]
[1768227001218,0.00327823,3111.2,3110.1,1.77944391]
[1768227001419,2.25683117,3111.1,3110.2,1.776]
[1768227001610,1.36180463,3111.1,3110.2,1.776]
[1768227001801,1.36180463,3111.1,3110.1,0.00344391]
[1768227002004,1.36180463,3110.7,3109.2,2.89408151]
[1768227002210,2.25696147,3110.6,3109.3,1.776]
[1768227002514,1.36180463,3110.4,3109.3,1.776]
[1768227003014,1.36180463,3110.4,3109.3,1.77931012]
[1768227003312,1.24353093,3110.8,3109.3,1.77931012]
[1768227003313,1.36180463,3110.8,3109.3,1.77931012]
[1768227003513,2.25698576,3110.7,3109.3,1.77931012]
[1768227003714,0.89518113,3110.6,3109.3,1.77931012]
[1768227003915,0.89518113,3110.5,3109.3,1.77931012]
[1768227004101,1.36180463,3110.7,3109.3,1.77931012]
[1768227004305,0.89517982,3110.6,3109.3,4.43373573]
[1768227004507,1.36180463,3110.7,3109.3,4.43373573]
[1768227004712,0.89515974,3110.6,3109.3,4.43373573]
[1768227004912,1.36180463,3110.7,3109.3,4.43373573]
[1768227005110,0.89515474,3110.6,3109.3,4.43373573]
[1768227005314,1.36180463,3110.7,3109.3,3.1902048]
[1768227005513,0.89515897,3110.6,3109.3,3.1902048]
[1768227005714,0.89515897,3110.5,3109.3,3.1902048]
[1768227005920,1.36180463,3110.7,3109.3,3.1902048]
[1768227006220,0.89515925,3110.6,3109.3,1.77931012]
[1768227006425,2.27786208,3110.5,3109.3,0.00331012]
[1768227006722,1.38270283,3110.5,3109.4,1.775]
[1768227007715,1.38270283,3110.9,3109.4,1.775]
[1768227008011,0.89519537,3110.8,3109.4,1.775]
[1768227008217,0.89519537,3110.7,3109.4,1.775]
[1768227008418,0.89519537,3110.6,3109.4,1.775]
[1768227008620,0.89519537,3110.5,3109.3,0.00331012]
[1768227008820,1.38270283,3110.9,3109.4,1.774]
[1768227009115,0.89520347,3110.8,3109.4,1.774]
[1768227009413,0.89520347,3110.7,3109.8,1.2424714]
[1768227009618,1.38270283,3110.9,3109.8,1.2424714]
[1768227009822,0.89517829,3110.8,3109.8,1.2424714]
[1768227010120,0.89517829,3110.7,3109.8,1.2424714]
[1768227010321,1.38270283,3110.9,3109.8,1.2424714]
[1768227010628,0.89517333,3110.8,3109.6,1.2424714]
[1768227010919,2.27787616,3110.7,3109.6,1.2424714]
[1768227011122,1.38270283,3110.7,3109.4,3.0164714]
[1768227011821,1.38270283,3110.7,3109.5,1.2424714]
[1768227014422,1.38270283,3110.7,3109.3,0.00331012]
[1768227014625,2.74322699,3110.4,3109.4,1.773]
[1768227016423,2.74322699,3110.4,3109.3,0.00331012]
[1768227016718,2.74322699,3110.4,3109.4,1.773]
[1768227019523,1.50075559,3110.3,3109.4,1.773]
[1768227020016,1.50075559,3110.3,3109.4,1.772]
[1768227021021,1.50075559,3110.7,3109.4,3.0144714]
[1768227021221,0.89525497,3110.6,3109.4,3.0144714]
[1768227021524,0.89525497,3110.5,3109.4,3.0144714]
[1768227021819,0.89525497,3110.4,3109.4,3.0144714]
[1768227022024,1.50075559,3110.7,3109.4,3.0144714]
[1768227022216,0.89525795,3110.6,3109.4,3.0144714]
[1768227022418,0.89525795,3110.5,3109.4,3.0144714]
[1768227022724,0.89525795,3110.4,3109.4,3.0144714]
[1768227022922,1.50075559,3110.7,3109.4,3.0144714]
[1768227023115,0.89526896,3110.6,3109.4,3.0144714]
[1768227023316,0.89526896,3110.5,3109.4,3.0144714]
[1768227023517,0.89526896,3110.4,3109.4,3.0144714]
[1768227023828,1.50075559,3110.7,3109.4,3.0144714]
[1768227024124,2.39566192,3110.6,3109.4,3.0144714]
[1768227024422,0.89490633,3110.5,3109.4,3.0144714]
[1768227029930,0.89490633,3110.5,3109.8,1.2424714]
[1768227030126,1.50075559,3111.0,3109.4,1.93301]
[1768227030127,1.50075559,3111.0,3110.0,1.2424714]
[1768227030430,0.89485319,3110.9,3110.0,1.2424714]
[1768227030621,0.89485319,3110.8,3110.0,1.2424714]
[1768227030822,0.89485319,3110.7,3110.0,1.2424714]
[1768227031023,0.00327823,3111.2,3110.0,1.2424714]
[1768227031231,0.89511062,3111.1,3110.2,1.2424714]
[1768227031435,0.00327823,3111.2,3110.2,1.2424714]
[1768227031732,0.89536665,3111.1,3110.2,1.2424714]
[1768227031930,0.89536665,3111.0,3110.2,1.2424714]
[1768227032124,0.89536665,3110.9,3110.2,1.2424714]
[1768227032325,0.00327823,3111.2,3110.2,1.2424714]